[Event "FIDE WCCC Open-12 2024"]
[Site "Montesilvano"]
[Date "2024.11.20"]
[Round "6.22"]
[White "Yerzhanuly Yernur"]
[Black "Obidov, Biloliddin"]
[Result "1-0"]
[ECO "D02"]
[WhiteElo "1917"]
[BlackElo "2088"]
[Annotator "NA RC"]
[PlyCount "77"]
[EventDate "2024.11.18"]
[EventType "swiss"]
[EventCountry "ITA"]
[SourceTitle "playchess.com"]
[Source "ChessBase"]
[SourceQuality "1"]
[TimeControl "5400+30"]

1. d4 {[%emt 0:00:11]} Nf6 {[%emt 0:00:01]} 2. Bf4 {[%emt 0:00:19]} d5 {[%emt 0:00:12]} 3. e3 {[%emt 0:00:07]} c5 {[%emt 0:00:03]} 4. Nf3 {[%emt 0:00:13]} Nc6 {[%emt 0:00:24]} 5. Nbd2 {[%emt 0:00:17]} cxd4 {[%emt 0:00:42]} 6. exd4 {[%emt 0:00:26] D02: 1 d4 d5 2 Nf3 sidelines, including 2...Nf6 3 g3 and 2...Nf6 3 Bf4.} Bf5 {[%emt 0:00:06]} 7. Bb5 {[%emt 0:01:25]} Qb6 {[%emt 0:00:10]} 8. c4 {[%emt 0:00:26]} dxc4 {[%emt 0:00:09]} 9. a4 {[%emt 0:00:25]} Bd3 {[%emt 0:02:04]} 10. Ne5 {[%emt 0:01:37]} e6 {[%emt 0:00:01]} 11. Ndxc4 {[%emt 0:02:27]} Bb4+ {[%emt 0:00:20]} 12. Bd2 {[%emt 0:02:43]} Bxc4 {[%emt 0:02:56]} 13. Nxc4 {[%emt 0:01:21]} Bxd2+ {[%emt 0:00:01]} 14. Qxd2 {[%emt 0:00:11]} Qc7 {[%emt 0:00:10]} 15. Qb4 {[%emt 0:13:37]} Rd8 {[%emt 0:07:20]} 16. Ne5 {[%emt 0:16:23]} Nd5 {[%emt 0:07:58]} 17. Qc5 {[%emt 0:02:24]} Nde7 {[%emt 0:01:49]} 18. Qxa7 {[%emt 0:12:43]} O-O {[%emt 0:01:11]} 19. Nxc6 {[%emt 0:00:10]} Nxc6 {[%emt 0:00:06]} 20. Bxc6 {[%emt 0:00:03]} Qxc6 {[%emt 0:00:08]} 21. O-O {[%emt 0:00:06]} Rd5 {[%emt 0:01:09]} 22. Rac1 {[%emt 0:03:22]} Qd7 {[%emt 0:00:42]} 23. Rc4 {[%emt 0:01:30]} Qe7 {[%emt 0:11:00]} 24. h3 {[%emt 0:04:00]} h6 {[%emt 0:00:50]} 25. Rfc1 {[%emt 0:01:27]} Rd7 {[%emt 0:05:08]} 26. Qc5 {[%emt 0:35:37]} Qd8 {[%emt 0:03:20]} 27. Qb5 {[%emt 0:00:00]} Kh7 {[%emt 0:03:31]} 28. Rc8 {[%emt 0:00:00]} Qe7 {[%emt 0:04:12]} 29. Rxf8 {[%emt 0:00:00]} Rxd4 {[%emt 0:04:47]} 30. Rfc8 {[%emt 0:00:00]} Qd6 {[%emt 0:02:12]} 31. Qxb7 {[%emt 0:00:00]} Rf4 {[%emt 0:00:51]} 32. a5 {[%emt 0:00:00]} Qd2 $18 {[%emt 0:00:15]} 33. Qb6 {[%emt 0:00:00]} Rf5 {[%emt 0:01:23]} 34. a6 {[%emt 0:00:00]} Rg5 {[%emt 0:00:01]} 35. a7 {[%emt 0:00:00]} Qd5 {[%emt 0:00:15]} 36. a8=Q {[%emt 0:00:00]} Rxg2+ {[%emt 0:00:42]} 37. Kf1 {[%emt 0:00:00]} Rxf2+ {[%emt 0:02:51]} 38. Qxf2 {[%emt 0:00:00]} Qd3+ {[%emt 0:00:10]} 39. Ke1 {[%emt 0:00:00]} 1-0

[Event "FIDE WCCC Open-12 2024"]
[Site "Montesilvano"]
[Date "2024.11.20"]
[Round "6.35"]
[White "Liu, Richard Jingjie"]
[Black "Nguyen, Anh Khoi"]
[Result "0-1"]
[ECO "C02"]
[WhiteElo "1795"]
[BlackElo "2520"]
[Annotator "TA"]
[PlyCount "56"]
[EventDate "2024.11.18"]
[EventType "swiss"]
[EventCountry "ITA"]
[SourceTitle "playchess.com"]
[Source "ChessBase"]
[SourceQuality "1"]
[TimeControl "5400+30"]

{[%evp 11,56,-5,0,9,12,25,26,19,21,16,18,6,12,0,0,0,0,-40,-37,-43,-20,-31,0,-29,46,39,57,65,77,108,87,95,127,0,0,0,4,-13,-25,-120,0,-78,-80,-1756,-1662,-6396,-5970]} 1. e4 {[%emt 0:00:03]} e6 {[%emt 0:00:07]} 2. d4 {[%emt 0:00:07]} d5 {[%emt 0:00:06]} 3. e5 {[%emt 0:00:02]} c5 {[%emt 0:00:07]} 4. c3 {[%emt 0:00:04]} Nc6 {[%emt 0:00:06]} 5. Nf3 {[%emt 0:00:04]} Bd7 {[%emt 0:00:13]} 6. a3 {[%emt 0:00:28]} Nge7 {[%emt 0:00:33]} 7. Bd3 {[%emt 0:00:27]} cxd4 {[%emt 0:03:02]} 8. cxd4 {[%emt 0:00:02]} Nf5 {[%emt 0:01:52]} 9. Bxf5 {[%emt 0:00:01] White has an edge.} exf5 {[%emt 0:00:10]} 10. Nc3 {[%emt 0:00:04]} Be6 $1 {[%emt 0:00:52]} 11. O-O {[%emt 0:00:19]} Be7 {[%emt 0:00:14]} 12. Ne1 {[%emt 0:00:32][%cal Bf3e1,Be1c2,Bc2e3][%mdl 32]} Qb6 {[%emt 0:09:25]} 13. Nc2 {[%emt 0:00:32]} O-O {[%emt 0:06:04]} 14. Kh1 {[%emt 0:01:17]} Rac8 {[%emt 0:01:03]} 15. f4 {[%emt 0:00:27]} Na5 {[%emt 0:02:37]} (15... f6 $5) 16. Ne3 {[%emt 0:05:19]} Rfd8 {[%emt 0:01:26]} 17. g4 {[%emt 0:05:02]} Nc4 {[%emt 0:28:52]} (17... Nb3 $11 18. gxf5 Nxa1 19. fxe6 fxe6) 18. Na4 $14 {[%emt 0:12:56] Excellent horsemanship.} (18. gxf5 Nxe3 (18... Nxb2 $2 19. Bxb2 Qxb2 20. Na4 $18) 19. Bxe3 Bxf5 $19) 18... Qc7 {[%emt 0:06:27]} 19. Nxf5 {[%emt 0:01:07]} Bxf5 {[%emt 0:01:11]} 20. gxf5 {[%emt 0:00:01]} Qd7 {[%emt 0:02:36]} 21. b3 {[%emt 0:06:47]} Na5 {[%emt 0:00:09][%cal Bc4a5,Ba5c6,Bc6d4,Bd4f3][%mdl 32] [#]} 22. Bd2 {[%emt 0:18:18]} (22. Qd3 $1 $16) 22... Nc6 $11 {[%emt 0:00:23]} 23. f6 {[%emt 0:48:01]} gxf6 {[%emt 0:04:28]} 24. Rg1+ {[%emt 0:00:00]} Kh8 {[%emt 0:00:06]} 25. Qh5 {[%emt 0:00:00] Inhibits Qf5.} (25. Be3 $11 {remains equal.}) 25... Rg8 {[%emt 0:04:48]} (25... Nxd4 $17 {And now ...Nf5 would win.} 26. Qxf7 Nf5) 26. Qxf7 {[%emt 0:00:00]} (26. Be3 $11) 26... Nxd4 $17 {[%emt 0:05:36][%cal Od7h3] aiming for ...Qh3!} 27. exf6 $2 {[%emt 0:00:00][%mdl 8192] [#]} (27. Raf1 $17 Ne2 (27... Nxb3 28. Bb4 $11) 28. Rxg8+ Rxg8 29. Qh5) 27... Qh3 $1 $19 {[%emt 0:00:10]} 28. Raf1 {[%emt 0:00:00] Prevents Qf3+.} (28. Qg7+ Rxg7) 28... Nf3 {[%emt 0:00:37] Weighted Error Value: White=0.86/Black=0.18 (very precise) .  Loses game:     	White=1     	---        Mistake:       	White=3     	Black=2      Inaccurate:     	White=2     	Black=1      OK:         	White=6     	Black=7      Best:        	White=2     	Black=2      Strong:       	---       	Black=2} (28... Bxa3 29. Bc3 Nf5 (29... Nxb3 30. Qxg8+ Rxg8 31. f7+ d4 32. fxg8=Q#) 30. Qxg8+ Rxg8 31. f7+ Rg7 32. Bxg7+ Nxg7 33. Re1 $11) 0-1

[Event "FIDE WCCC Open-12 2024"]
[Site "Montesilvano"]
[Date "2024.11.20"]
[Round "6.43"]
[White "Sason, Noam"]
[Black "Wang, Zihao(Sh)"]
[Result "0-1"]
[ECO "A08"]
[WhiteElo "2017"]
[BlackElo "1838"]
[Annotator "RC"]
[PlyCount "130"]
[EventDate "2024.11.18"]
[EventType "swiss"]
[EventCountry "ITA"]
[SourceTitle "playchess.com"]
[Source "ChessBase"]
[SourceQuality "1"]
[TimeControl "5400+30"]

1. Nf3 {[%emt 0:00:02]} Nf6 {[%emt 0:00:09]} 2. g3 {[%emt 0:00:08]} g6 {[%emt 0:00:04]} 3. Bg2 {[%emt 0:00:05]} Bg7 {[%emt 0:00:03]} 4. O-O {[%emt 0:00:15]} O-O {[%emt 0:00:01]} 5. d3 {[%emt 0:01:16]} d5 {[%emt 0:01:01]} 6. Nbd2 {[%emt 0:00:11]} Re8 {[%emt 0:00:25]} 7. e4 {[%emt 0:01:27]} e5 {[%emt 0:00:36]} 8. exd5 {[%emt 0:01:49]} Nxd5 {[%emt 0:00:19]} 9. Re1 {[%emt 0:02:00]} c5 {[%emt 0:01:22]} 10. Nc4 {[%emt 0:04:10]} Nc6 {[%emt 0:01:01]} 11. a4 {[%emt 0:03:46]} b6 {[%emt 0:05:03]} 12. Ng5 {[%emt 0:03:21]} f6 {[%emt 0:06:32]} 13. Ne4 {[%emt 0:11:34]} Be6 {[%emt 0:01:51]} 14. Ned6 {[%emt 0:02:26]} Rf8 {[%emt 0:02:14]} 15. f4 {[%emt 0:04:30]} Qd7 {[%emt 0:01:34]} 16. c3 {[%emt 0:05:40]} Rab8 {[%emt 0:02:30]} 17. Qf3 {[%emt 0:09:53]} Nde7 {[%emt 0:01:09]} 18. Ne4 {[%emt 0:03:21]} Bxc4 {[%emt 0:09:56]} 19. dxc4 {[%emt 0:00:06]} f5 {[%emt 0:00:04]} 20. Nf2 {[%emt 0:01:13]} e4 {[%emt 0:00:27]} 21. Qe2 {[%emt 0:00:56]} Na5 {[%emt 0:02:13]} 22. Be3 {[%emt 0:01:55]} Rfd8 {[%emt 0:01:35]} 23. Bf1 {[%emt 0:02:36]} Qe6 {[%emt 0:02:28]} 24. Rad1 {[%emt 0:02:12]} Kf7 {[%emt 0:00:40]} 25. Rxd8 {[%emt 0:12:19]} Rxd8 {[%emt 0:00:25]} 26. Rd1 {[%emt 0:00:02]} Rxd1 {[%emt 0:01:31]} 27. Nxd1 {[%emt 0:00:08]} Nc8 {[%emt 0:01:54]} 28. Bf2 {[%emt 0:01:53]} Qd7 {[%emt 0:04:39]} 29. Qc2 {[%emt 0:00:34]} Ne7 {[%emt 0:01:06]} 30. Ne3 {[%emt 0:00:56]} Qd6 {[%emt 0:01:00]} 31. Be2 {[%emt 0:03:09]} Bf6 {[%emt 0:00:36]} 32. Kf1 {[%emt 0:02:17]} h6 {[%emt 0:00:50]} 33. Qd1 {[%emt 0:01:39]} Ke6 {[%emt 0:02:12]} 34. Ke1 {[%emt 0:01:14]} Qc6 {[%emt 0:02:16]} 35. g4 {[%emt 0:02:15]} Nb7 {[%emt 0:03:07]} 36. gxf5+ {[%emt 0:17:12]} gxf5 {[%emt 0:00:15]} 37. Bh5 {[%emt 0:00:00]} Qd6 {[%emt 0:01:36]} 38. Nd5 {[%emt 0:00:00]} Nd8 {[%emt 0:03:02]} 39. Nxf6 {[%emt 0:00:00]} Qxd1+ {[%emt 0:00:11]} 40. Kxd1 {[%emt 0:00:00]} Kxf6 {[%emt 0:00:03]} 41. Kd2 {[%emt 0:00:00]} Ke6 {[%emt 0:00:29]} 42. b4 {[%emt 0:00:00]} Nb7 {[%emt 0:00:36]} 43. Be8 {[%emt 0:00:00]} a5 {[%emt 0:00:54]} 44. Bb5 {[%emt 0:00:00]} Kd6 {[%emt 0:01:19]} 45. h4 {[%emt 0:00:00]} Nc6 {[%emt 0:01:57]} 46. bxa5 {[%emt 0:00:00]} Ncxa5 {[%emt 0:00:55]} 47. h5 {[%emt 0:00:00]} Ke6 {[%emt 0:01:14]} 48. Bh4 {[%emt 0:00:00]} Nd6 {[%emt 0:01:13]} 49. Bd8 {[%emt 0:00:00]} Naxc4+ {[%emt 0:01:59]} 50. Ke2 {[%emt 0:00:00]} Nxb5 {[%emt 0:02:24]} 51. axb5 {[%emt 0:00:00]} Kd7 {[%emt 0:01:25]} 52. Bf6 {[%emt 0:00:00]} Nd6 {[%emt 0:01:26]} 53. Bg7 {[%emt 0:00:04]} Nxb5 {[%emt 0:00:34]} 54. Kd2 {[%emt 0:00:13]} Ke6 {[%emt 0:01:18]} 55. Bxh6 {[%emt 0:00:08]} Kf7 {[%emt 0:00:04]} 56. Bg5 {[%emt 0:00:14]} Nd6 {[%emt 0:00:16]} 57. Ke2 {[%emt 0:00:57]} b5 {[%emt 0:00:59]} 58. Bd8 {[%emt 0:01:29]} Nb7 {[%emt 0:01:00]} 59. Bh4 {[%emt 0:00:54]} Kg7 {[%emt 0:00:08]} 60. Bg5 {[%emt 0:00:08]} c4 {[%emt 0:00:10]} 61. Ke3 {[%emt 0:00:15]} Nc5 {[%emt 0:01:33]} 62. Kd4 {[%emt 0:00:30]} Ne6+ {[%emt 0:00:04]} 63. Ke5 {[%emt 0:00:06]} Nxg5 {[%emt 0:00:47]} 64. fxg5 {[%emt 0:00:01]} e3 {[%emt 0:00:08]} 65. h6+ {[%emt 0:00:27]} Kg6 {[%emt 0:00:05]} 0-1

[Event "FIDE WCCC Open-12 2024"]
[Site "Montesilvano"]
[Date "2024.11.20"]
[Round "6.51"]
[White "Petrovski, Nikola"]
[Black "Macia Tell, Dario"]
[Result "1-0"]
[ECO "B51"]
[WhiteElo "1829"]
[BlackElo "1520"]
[Annotator "NA RC"]
[PlyCount "73"]
[EventDate "2024.11.18"]
[EventType "swiss"]
[EventCountry "ITA"]
[SourceTitle "playchess.com"]
[Source "ChessBase"]
[SourceQuality "1"]
[TimeControl "5400+30"]

1. e4 {[%emt 0:00:45]} c5 {[%emt 0:00:03]} 2. Nf3 {[%emt 0:00:05]} d6 {[%emt 0:00:05]} 3. Bb5+ {[%emt 0:00:25]} Nd7 {[%emt 0:00:06]} 4. c4 {[%emt 0:00:12]} g6 {[%emt 0:00:09]} 5. Nc3 {[%emt 0:00:06]} Bg7 {[%emt 0:00:05]} 6. O-O {[%emt 0:00:19]} Ngf6 {[%emt 0:00:24]} 7. d3 {[%emt 0:00:11]} O-O {[%emt 0:00:09]} 8. h3 {[%emt 0:00:14]} e5 {[%emt 0:01:13]} 9. Be3 {[%emt 0:01:10]} a6 {[%emt 0:00:25]} 10. Ba4 {[%emt 0:09:39]} Nb6 {[%emt 0:00:43]} 11. Bc2 {[%emt 0:00:21]} Be6 {[%emt 0:00:28]} 12. Qd2 {[%emt 0:00:52]} Rc8 {[%emt 0:01:59]} 13. Bh6 {[%emt 0:01:13]} Qd7 {[%emt 0:01:06]} 14. Bxg7 {[%emt 0:00:33]} Kxg7 {[%emt 0:00:07]} 15. Rad1 {[%emt 0:12:37]} Rh8 {[%emt 1:30:58]} 16. Ng5 {[%emt 0:01:46]} Rcf8 {[%emt 0:00:00]} 17. f4 {[%emt 0:06:38]} h6 {[%emt 0:00:00]} 18. Nf3 {[%emt 0:18:56]} exf4 {[%emt 0:00:00]} 19. Qxf4 {[%emt 0:02:48]} g5 {[%emt 0:00:00]} 20. Nxg5 {[%emt 0:05:29]} Nh5 {[%emt 0:00:00]} 21. Qh4 {[%emt 0:09:41]} Nf6 {[%emt 0:00:00]} 22. Rxf6 {[%emt 0:13:55]} Kxf6 {[%emt 0:00:00]} 23. Nh7+ {[%emt 0:05:07]} Kg7 {[%emt 0:00:00]} 24. Nxf8 {[%emt 0:00:56]} Rxf8 {[%emt 0:00:00]} 25. Rf1 {[%emt 0:01:24]} f5 {[%emt 0:00:00]} 26. Nd5 {[%emt 0:02:41]} Nxd5 {[%emt 0:00:00]} 27. cxd5 {[%emt 0:00:29]} Bg8 {[%emt 0:00:00]} 28. exf5 {[%emt 0:01:32]} Bxd5 {[%emt 0:00:00]} 29. f6+ {[%emt 0:00:14]} Kh7 {[%emt 0:00:00]} 30. d4+ {[%emt 0:00:05]} Kg8 {[%emt 0:00:00]} 31. Qxh6 {[%emt 0:02:13]} Rf7 {[%emt 0:00:00]} 32. Qg5+ {[%emt 0:00:49]} Kf8 {[%emt 0:00:00]} 33. Qxd5 {[%emt 0:00:06]} Qb5 {[%emt 0:00:00]} 34. Qxd6+ {[%emt 0:00:29]} Kg8 {[%emt 0:00:00]} 35. Qd8+ {[%emt 0:00:25]} Rf8 {[%emt 0:00:00]} 36. f7+ {[%emt 0:00:06]} Kg7 {[%emt 0:00:00]} 37. Qf6# {[%emt 0:00:12]} 1-0

[Event "FIDE WCCC Open-12 2024"]
[Site "Montesilvano"]
[Date "2024.11.20"]
[Round "6.52"]
[White "Kozhedub, Ivan"]
[Black "Huang, Hao-Xuan"]
[Result "1-0"]
[ECO "C28"]
[WhiteElo "1826"]
[BlackElo "1516"]
[Annotator "NA RC"]
[PlyCount "51"]
[EventDate "2024.11.18"]
[EventType "swiss"]
[EventCountry "ITA"]
[SourceTitle "playchess.com"]
[Source "ChessBase"]
[SourceQuality "1"]
[TimeControl "5400+30"]

1. e4 {[%emt 0:00:04]} e5 {[%emt 0:00:12]} 2. Nc3 {[%emt 0:00:04]} Nf6 {[%emt 0:01:07]} 3. Bc4 {[%emt 0:00:06]} Nc6 {[%emt 0:01:03]} 4. d3 {[%emt 0:00:06]} Bb4 {[%emt 0:00:40]} 5. Nge2 {[%emt 0:00:26]} O-O {[%emt 0:05:17]} 6. O-O {[%emt 0:01:07]} d6 {[%emt 0:01:18]} 7. Bg5 {[%emt 0:04:26]} h6 {[%emt 0:07:10]} 8. Bxf6 {[%emt 0:01:26]} Qxf6 {[%emt 0:00:36]} 9. Nd5 {[%emt 0:00:09]} Qd8 {[%emt 0:01:49]} 10. f4 {[%emt 0:04:30]} Bc5+ {[%emt 0:01:18]} 11. Kh1 {[%emt 0:00:51]} Bg4 {[%emt 0:05:58]} 12. Qe1 {[%emt 0:05:52]} Qd7 {[%emt 0:13:33]} 13. f5 {[%emt 0:01:57]} Bxe2 {[%emt 0:07:28]} 14. Qxe2 {[%emt 0:00:11]} Nd4 {[%emt 0:01:46]} 15. Qh5 {[%emt 0:02:28]} c6 {[%emt 0:06:53]} 16. Nf6+ {[%emt 0:00:52]} gxf6 {[%emt 0:00:49]} 17. Qg6+ {[%emt 0:00:03]} Kh8 {[%emt 0:00:24]} 18. Qxh6+ {[%emt 0:00:04]} Kg8 {[%emt 0:00:40]} 19. Qg6+ {[%emt 0:02:12]} Kh8 {[%emt 0:00:10]} 20. Qxf6+ {[%emt 0:00:09]} Kg8 {[%emt 0:02:01]} 21. Qg5+ {[%emt 0:00:14]} Kh7 {[%emt 0:09:11]} 22. f6 {[%emt 0:01:01]} Ne6 {[%emt 0:03:29]} 23. Bxe6 {[%emt 0:00:10]} fxe6 {[%emt 0:00:25]} 24. Rf3 {[%emt 0:00:01]} Kh8 {[%emt 0:05:24]} 25. Rh3+ {[%emt 0:00:04]} Qh7 {[%emt 0:00:09]} 26. Qg7# {[%emt 0:00:04]} 1-0

[Event "FIDE WCCC Open-12 2024"]
[Site "Montesilvano"]
[Date "2024.11.20"]
[Round "6.56"]
[White "Wang, Luis"]
[Black "Son, Juwon"]
[Result "1-0"]
[ECO "A45"]
[WhiteElo "1751"]
[BlackElo "1448"]
[Annotator "NA RC"]
[PlyCount "79"]
[EventDate "2024.11.18"]
[EventType "swiss"]
[EventCountry "ITA"]
[SourceTitle "playchess.com"]
[Source "ChessBase"]
[SourceQuality "1"]
[TimeControl "5400+30"]

1. d4 {[%emt 0:00:08]} Nf6 {[%emt 0:00:09]} 2. Bf4 {[%emt 0:00:13]} c5 {[%emt 0:00:07]} 3. e3 {[%emt 0:00:10]} Qb6 {[%emt 0:00:06]} 4. dxc5 {[%emt 0:01:06]} Qxb2 {[%emt 0:00:28]} 5. Nd2 {[%emt 0:00:11]} e5 {[%emt 0:01:24]} 6. Bg3 {[%emt 0:02:41]} Bxc5 {[%emt 0:01:01]} 7. Bc4 {[%emt 0:01:12]} Bb4 {[%emt 0:04:42]} 8. Ngf3 {[%emt 0:03:12]} Nc6 {[%emt 0:04:21]} 9. Rb1 {[%emt 0:03:36]} Qc3 {[%emt 0:00:52]} 10. O-O {[%emt 0:00:54]} e4 {[%emt 0:00:14]} 11. Rb3 {[%emt 0:00:38]} exf3 {[%emt 0:03:30]} 12. Rxc3 {[%emt 0:00:41]} fxg2 {[%emt 0:00:04]} 13. Kxg2 {[%emt 0:00:30]} Bxc3 {[%emt 0:00:10]} 14. Nb1 {[%emt 0:01:11]} Be5 {[%emt 0:02:50]} 15. Bb3 {[%emt 0:02:24]} Bxg3 {[%emt 0:00:47]} 16. hxg3 {[%emt 0:00:12]} O-O {[%emt 0:00:48]} 17. Rh1 {[%emt 0:01:45]} Rd8 {[%emt 0:02:06]} 18. Nc3 {[%emt 0:01:44]} Na5 {[%emt 0:06:32]} 19. Nd5 {[%emt 0:00:32]} Nxd5 {[%emt 0:01:33]} 20. Bxd5 {[%emt 0:00:20]} g6 {[%emt 0:04:53]} 21. Bxf7+ {[%emt 0:00:58]} Kg7 {[%emt 0:03:27]} 22. Bxg6 {[%emt 0:02:51]} hxg6 {[%emt 0:01:23]} 23. Qd4+ {[%emt 0:00:10]} Kf7 {[%emt 0:00:13]} 24. Rh7+ {[%emt 0:00:07]} Ke6 {[%emt 0:00:16]} 25. Qe4+ {[%emt 0:00:38]} Kd6 {[%emt 0:00:14]} 26. Qb4+ {[%emt 0:00:49]} Kc7 {[%emt 0:01:12]} 27. Qxa5+ {[%emt 0:00:12]} b6 {[%emt 0:00:10]} 28. Qe5+ {[%emt 0:00:20]} Kb7 {[%emt 0:00:39]} 29. Qg5 {[%emt 0:00:00]} Ka6 {[%emt 0:01:21]} 30. f3 {[%emt 0:00:00]} Bb7 {[%emt 0:01:59]} 31. Qxg6 {[%emt 0:00:00]} Re8 {[%emt 0:00:51]} 32. Qd3+ {[%emt 0:00:00]} b5 {[%emt 0:01:14]} 33. Qxd7 {[%emt 0:01:02]} Rab8 {[%emt 0:00:26]} 34. Rh6+ {[%emt 0:00:19]} Ka5 {[%emt 0:00:51]} 35. Qc7+ {[%emt 0:00:15]} Ka4 {[%emt 0:01:01]} 36. Rh4+ {[%emt 0:00:11]} b4 {[%emt 0:00:31]} 37. Qd7+ {[%emt 0:00:27]} Ka3 {[%emt 0:00:26]} 38. Qd3+ {[%emt 0:00:19]} Kxa2 {[%emt 0:00:29]} 39. Qb3+ {[%emt 0:00:09]} Ka1 {[%emt 0:00:25]} 40. Rh1# {[%emt 0:00:06]} 1-0

[Event "FIDE WCCC Open-12 2024"]
[Site "Montesilvano"]
[Date "2024.11.20"]
[Round "6.57"]
[White "Sharafutdinov, Timur"]
[Black "Mikolavicius, Julius"]
[Result "0-1"]
[ECO "B50"]
[WhiteElo "1925"]
[BlackElo "1746"]
[Annotator "RC"]
[PlyCount "76"]
[EventDate "2024.11.18"]
[EventType "swiss"]
[EventCountry "ITA"]
[SourceTitle "playchess.com"]
[Source "ChessBase"]
[SourceQuality "1"]
[TimeControl "5400+30"]

1. e4 {[%emt 0:00:43]} c5 {[%emt 0:00:11]} 2. Nf3 {[%emt 0:00:11]} d6 {[%emt 0:00:11]} 3. c3 {[%emt 0:01:04]} Nf6 {[%emt 0:00:06]} 4. Be2 {[%emt 1:30:32]} Nbd7 {[%emt 0:00:51]} 5. d3 {[%emt 0:00:00]} e6 {[%emt 0:00:42]} 6. Bg5 {[%emt 0:00:00]} Be7 {[%emt 0:00:21]} 7. Nbd2 {[%emt 0:00:00]} b6 {[%emt 0:02:37]} 8. O-O {[%emt 0:00:00]} Bb7 {[%emt 0:01:01]} 9. Nc4 {[%emt 0:00:00]} d5 {[%emt 0:03:25]} 10. exd5 {[%emt 0:00:00]} exd5 {[%emt 0:12:22]} 11. Nce5 {[%emt 0:00:00]} O-O {[%emt 0:01:20]} 12. d4 {[%emt 0:04:00]} Ne4 {[%emt 0:09:41]} 13. Bxe7 {[%emt 0:00:00]} Qxe7 {[%emt 0:00:22]} 14. Bd3 {[%emt 0:00:00]} Nxe5 {[%emt 0:06:36]} 15. Nxe5 {[%emt 0:00:00]} f6 {[%emt 0:00:47]} 16. Bxe4 {[%emt 0:00:00]} dxe4 {[%emt 0:07:50]} 17. Qb3+ {[%emt 0:00:00]} Kh8 {[%emt 0:00:29]} 18. Ng4 {[%emt 0:00:00]} Qd7 {[%emt 0:00:38]} 19. Ne3 {[%emt 0:00:00]} cxd4 {[%emt 0:00:12]} 20. Rad1 {[%emt 0:00:00]} d3 {[%emt 0:00:11]} 21. Nc4 {[%emt 0:00:00]} Rac8 {[%emt 0:03:09]} 22. Nd2 {[%emt 0:00:00]} f5 {[%emt 0:00:15]} 23. Rfe1 {[%emt 0:00:00]} Qc6 {[%emt 0:01:45]} 24. f3 {[%emt 0:00:00]} Qc5+ {[%emt 0:00:09]} 25. Kh1 {[%emt 0:00:00]} e3 {[%emt 0:00:22]} 26. Nf1 {[%emt 0:00:00]} e2 {[%emt 0:00:22]} 27. Rd2 {[%emt 0:00:00]} Qf2 {[%emt 0:00:15]} 28. Rdd1 {[%emt 0:00:00]} Rce8 {[%emt 0:02:15]} 29. h3 {[%emt 0:00:00]} exd1=Q {[%emt 0:00:44]} 30. Rxd1 {[%emt 0:00:00]} Re1 {[%emt 0:00:34]} 31. Rxe1 {[%emt 0:00:00]} Qxe1 {[%emt 0:00:11]} 32. Kh2 {[%emt 0:00:00]} Qxf1 {[%emt 0:00:11]} 33. Qa3 {[%emt 0:00:00]} Rg8 {[%emt 0:00:28]} 34. Qxa7 {[%emt 0:00:00]} d2 {[%emt 0:00:12]} 35. Qxb7 {[%emt 0:00:00]} d1=Q {[%emt 0:00:15]} 36. Qc7 {[%emt 0:00:00]} Qde1 {[%emt 0:00:25]} 37. Qxg7+ {[%emt 0:00:00]} Rxg7 {[%emt 0:00:16]} 38. g4 {[%emt 0:00:00]} Qef2# {[%emt 0:00:10]} 0-1

[Event "FIDE WCCC Open-12 2024"]
[Site "Montesilvano"]
[Date "2024.11.20"]
[Round "6.64"]
[White "Boiko, Nazar"]
[Black "Stefanov, Stefan"]
[Result "1-0"]
[ECO "B14"]
[WhiteElo "1614"]
[BlackElo "1478"]
[Annotator "NA RC"]
[PlyCount "80"]
[EventDate "2024.11.18"]
[EventType "swiss"]
[EventCountry "ITA"]
[SourceTitle "playchess.com"]
[Source "ChessBase"]
[SourceQuality "1"]
[TimeControl "5400+30"]

1. e4 {[%emt 0:00:02]} c6 {[%emt 0:00:06]} 2. d4 {[%emt 0:00:03]} d5 {[%emt 0:00:04]} 3. exd5 {[%emt 0:00:05]} cxd5 {[%emt 0:00:05]} 4. c4 {[%emt 0:00:04]} Nf6 {[%emt 0:00:45]} 5. Nc3 {[%emt 0:00:05]} Nc6 {[%emt 0:00:44]} 6. Bg5 {[%emt 0:00:25]} e6 {[%emt 0:02:18]} 7. Nf3 {[%emt 0:03:07]} h6 {[%emt 0:01:41]} 8. Bh4 {[%emt 0:00:13]} Be7 {[%emt 0:01:31]} 9. c5 {[%emt 0:00:57]} O-O {[%emt 0:00:56]} 10. Bb5 {[%emt 0:00:21]} Qc7 {[%emt 0:01:04]} 11. Bg3 {[%emt 0:02:25]} Qa5 {[%emt 0:03:38]} 12. Bxc6 {[%emt 0:19:06]} bxc6 {[%emt 0:00:19]} 13. O-O {[%emt 0:00:20]} Ba6 {[%emt 0:18:38]} 14. Re1 {[%emt 0:00:08]} Nd7 {[%emt 0:10:51]} 15. a3 {[%emt 0:09:53]} Qd8 {[%emt 0:00:26]} 16. Qc2 {[%emt 0:10:01]} Re8 {[%emt 0:08:19]} 17. b4 {[%emt 0:03:30]} Bc4 {[%emt 0:01:19]} 18. Nd2 {[%emt 0:03:22]} Ba6 {[%emt 0:05:01]} 19. a4 {[%emt 0:02:12]} Bh4 {[%emt 0:05:03]} 20. b5 {[%emt 0:04:44]} Bxg3 {[%emt 0:04:39]} 21. hxg3 {[%emt 0:00:13]} Bb7 {[%emt 0:01:52]} 22. a5 {[%emt 0:12:25]} a6 {[%emt 0:01:24]} 23. bxc6 {[%emt 0:03:10]} Bxc6 {[%emt 0:00:15]} 24. Nf3 {[%emt 0:01:14]} Qc7 {[%emt 0:01:45]} 25. Na4 {[%emt 0:02:28]} Bxa4 {[%emt 0:04:13]} 26. Qxa4 {[%emt 0:00:26]} Rac8 {[%emt 0:01:50]} 27. Rac1 {[%emt 0:03:38]} Qc6 {[%emt 0:01:43]} 28. Qxc6 {[%emt 0:01:51]} Rxc6 {[%emt 0:00:10]} 29. Rb1 {[%emt 0:00:54]} Rc7 {[%emt 0:03:48]} 30. Ne5 {[%emt 0:09:17]} Nxe5 {[%emt 0:00:19]} 31. Rxe5 {[%emt 0:00:06]} f6 {[%emt 0:01:41]} 32. Re2 {[%emt 0:00:31]} Kf7 {[%emt 0:02:31]} 33. f4 {[%emt 0:03:46]} e5 {[%emt 0:06:13]} 34. Rbe1 {[%emt 0:00:54]} e4 {[%emt 0:02:04]} 35. Rb1 {[%emt 0:00:56]} Rc6 {[%emt 0:04:50]} 36. Rb6 {[%emt 0:00:46]} Rec8 {[%emt 0:00:30]} 37. Reb2 {[%emt 0:00:36]} Ke7 {[%emt 0:02:37]} 38. Rb7+ {[%emt 0:00:51]} R8c7 {[%emt 0:00:21]} 39. R2b6 {[%emt 0:01:38]} Rxb7 {[%emt 0:01:15]} 40. Rxb7+ {[%emt 0:00:07]} Ke6 {[%emt 0:03:42]} 1-0